lending/lending_fUSD_20251022
["ID","MTS","AMOUNT","RATE_DAILY","PERIOD"]
[392106004,1761163763244,-613.52,0.00037436,2]
[392106005,1761163763263,-2000.0,0.00037745,2]
[392106006,1761163763282,-2261.004802,0.00037849,2]
[392106007,1761163763309,-2738.995198,0.00037849,2]
[392106008,1761163763331,-244.82,0.00038026,2]
[392106009,1761163763352,-325.42359455,0.00038578,30]
[392106010,1761163763373,-297.38,0.0003858,2]
[392106011,1761163763394,-500.0,0.00038701,7]
[392106012,1761163763415,-244.82,0.00039178,2]
[392106013,1761163774299,4167.88005745,0.00033025,2]
[392106014,1761163774321,15207.75474705,0.00033025,2]
[392106026,1761163832029,-922.60642403,0.00037463,2]
[392106027,1761163832044,-18453.02838047,0.00037463,2]
[392106028,1761163832055,-166.66,0.00039728,30]
[392106029,1761163832065,-3200.0,0.0004,120]
[392106030,1761163832076,-374.70269492,0.0004,10]
[392106031,1761163832087,-244.82,0.0004033,2]
[392106032,1761163832098,-1478.34,0.0004047,2]
[392106033,1761163832107,-162.14169228,0.00040488,4]
[392106034,1761163832117,-150.0,0.00040488,4]
[392106035,1761163832129,-150.0,0.00040488,4]
[392106036,1761163832141,-150.0,0.00040488,4]
[392106037,1761163832150,-166.66,0.00040564,30]
[392106038,1761163832161,-186.65,0.00040637,2]
[392106039,1761163832172,-1000.0,0.00040708,120]
[392106040,1761163832181,-153.0,0.00041,90]
[392106041,1761163832191,-535.33002248,0.000411,2]
[392106042,1761163832201,-250.0,0.00041261,120]
[392106043,1761163832210,-500.0,0.00041393,2]
[392106044,1761163832220,-166.66,0.00041401,30]
[392106045,1761163832229,-244.82,0.00041483,2]
[392106046,1761163832238,-10565.81611081,0.00041902,2]
[392106047,1761163832254,-8809.81869369,0.00041902,2]
[392106048,1761163832264,-167.17,0.00041937,2]
[392106049,1761163832274,-394.6260283,0.00042133,31]
[392106050,1761163832283,-817.0,0.00042134,2]
[392106051,1761163832293,-1269.0,0.00042134,2]
[392106052,1761163832302,-903.0,0.00042134,2]
[392106053,1761163832312,-1184.0,0.00042134,2]
[392106054,1761163832322,-2548.0,0.00042134,2]
[392106055,1761163832332,-166.66,0.00042237,30]
[392106056,1761163832341,-244.82,0.00042635,2]
[392106057,1761163832357,-220.69648302,0.00042649,2]
[392106058,1761163832368,-281.48,0.00042683,2]
[392106059,1761163832381,-427.44,0.00043,120]
[392106060,1761163832393,-306.63,0.00043,120]
[392106061,1761163832406,-334.0,0.00043,2]
[392106062,1761163832418,-6336.85761366,0.00043,117]
[392106063,1761163832430,-166.66,0.00043073,30]
[392106064,1761163832442,-171.70470531,0.00043233,30]
[392106065,1761163832452,-153.0,0.00043337,90]
[392106066,1761163832463,-153.0,0.00043337,90]
[392106067,1761163832474,-171.70470531,0.00043616,30]
[392106068,1761163832484,-244.82,0.00043787,2]
[392106069,1761163832496,-1214.0,0.00043826,30]
[392106070,1761163832507,-160.45164403,0.00043836,2]
[392106071,1761163832518,-4591.6597,0.000439,2]
[392106072,1761163832529,-233.6113,0.000439,2]
[392106073,1761163832540,-2520.66740652,0.000439,15]
[392106074,1761163832550,-166.66,0.0004391,30]
[392106075,1761163832564,-926.54811579,0.00043915,50]
[392106076,1761163832575,-1123.07297218,0.00043915,50]
[392106077,1761163832586,-1062.70033301,0.00043915,50]
[392106078,1761163832597,-1110.30080651,0.00043915,50]
[392106079,1761163832608,-232.56,0.00043939,120]
[392106080,1761163832619,-27418.95885547,0.00044,120]
[392106081,1761163832631,-3300.0,0.00044,120]
[392106082,1761163832642,-57211.51750732,0.00044,30]
[392106083,1761163832656,-17350.33134767,0.00044,30]
[392106085,1761163832667,-171.70470531,0.00044,30]
[392106087,1761163832681,-1000.0,0.00044,30]
[392106088,1761163832692,-1000.0,0.00044,30]
[392106089,1761163832703,-2520.66740643,0.00044011,15]
[392106090,1761163832715,-200.0,0.00044012,2]
[392106091,1761163832726,-2520.66740643,0.00044122,15]
[392106092,1761163832737,-2520.66740643,0.00044233,15]
[392106093,1761163832746,-6453.0,0.00044251,2]
[392106094,1761163832756,-6536.0,0.00044251,2]
[392106095,1761163832766,-2592.0,0.00044251,2]
[392106096,1761163832776,-1214.0,0.00044278,30]
[392106097,1761163832787,-400.0,0.000443,16]
[392106098,1761163832799,-2520.66740643,0.00044344,15]
[392106099,1761163832810,-171.70470531,0.00044384,30]
[392106100,1761163832821,-800.0,0.000444,16]
[392106101,1761163832832,-2520.66740643,0.00044456,15]
[392106102,1761163832843,-237.42515642,0.00044497,2]
[392106103,1761163832853,-1200.0,0.000445,16]
[392106104,1761163832865,-2520.66740643,0.00044567,15]
[392106105,1761163832875,-1075.00733898,0.000446,16]
[392106106,1761163832889,-524.99266102,0.000446,16]
[392106107,1761163832900,-150.0,0.00044603,60]
[392106108,1761163832911,-150.0,0.00044603,60]
[392106109,1761163832922,-150.0,0.00044603,60]
[392106110,1761163832938,-150.0,0.00044603,60]
[392106111,1761163832949,-150.0,0.00044603,60]
[392106112,1761163832960,-150.0,0.00044603,2]
[392106113,1761163832972,-150.0,0.00044603,60]
[392106114,1761163832985,-152.53886014,0.00044603,60]
[392106115,1761163832996,-150.0,0.00044603,60]
[392106116,1761163833008,-150.0,0.00044603,60]
[392106117,1761163833018,-150.0,0.00044603,60]
[392106118,1761163833029,-200.0,0.00044603,60]
[392106119,1761163833040,-150.0,0.00044658,60]
[392106120,1761163833052,-2520.66740643,0.00044678,15]
[392106121,1761163833064,-2000.0,0.000447,16]
[392106122,1761163833074,-200.0,0.00044713,60]
[392106123,1761163833085,-1214.0,0.0004473,30]
[392106124,1761163833096,-171.70470531,0.00044767,30]
[392106125,1761163833107,-957.63115916,0.00044789,15]
[392106126,1761163833121,-792.96581108,0.00044789,15]
[392106127,1761163833137,-539.99999997,0.00044789,15]
[392106139,1761163837924,-557.0,0.00044251,2]
[392106140,1761163837936,-230.07043622,0.00044789,15]
[392106141,1761163837946,-164.16656254,0.00044799,28]
[392106142,1761163837957,-345.33300124,0.000448,15]
[392106143,1761163837969,-341.28391657,0.000448,15]
[392106144,1761163837983,-460.9312667,0.000448,15]
[392106145,1761163837995,-118.93922535,0.000448,15]
[392106146,1761163838007,-2019.85018802,0.000448,17]
[392106147,1761163838020,-89.20313136,0.000448,17]
[392106148,1761163838035,-400.0,0.000448,16]
[392106149,1761163838049,-1266.48740977,0.00044811,15]
[392106150,1761163838064,-255.55608916,0.00044822,15]
[392106151,1761163838083,-1010.93132061,0.00044822,15]
[392106152,1761163838095,-164.16656253,0.00044826,28]
[392106153,1761163838107,-2257.17715863,0.00044832,2]
[392106154,1761163838119,-1762.58450941,0.00044833,120]
[392106155,1761163838135,-33.13549059,0.00044833,120]
[392106156,1761163838146,-500.0,0.00044833,120]
[392106157,1761163838157,-500.0,0.00044833,120]
[392106158,1761163838167,-500.0,0.00044833,120]
[392106159,1761163838177,-1177.54631389,0.00044833,15]
[392106160,1761163838190,-88.94109588,0.00044833,15]
[392106161,1761163838200,-155.379,0.00044833,2]
[392106162,1761163838213,-150.0,0.00044833,2]
[392106164,1761163838224,-150.0,0.00044833,2]
[392106166,1761163838234,-150.0,0.00044833,2]
[392106168,1761163838245,-150.11,0.00044833,2]
[392106170,1761163838259,-150.0,0.00044833,2]
[392106172,1761163838279,-150.0,0.00044833,2]
[392106174,1761163838290,-89.3743132,0.00044833,2]
[392106204,1761163838567,-728.6256868,0.00044833,2]
[392106206,1761163838577,-1276.63384283,0.00044833,2]
[392106386,1761163840430,-552.46270383,0.00044833,2]
[392106456,1761163841323,-222.90345334,0.00044833,2]
[392106457,1761163841333,-933.85472927,0.00044833,2]
[392106458,1761163841343,-2477.14527073,0.00044833,2]
[392106459,1761163841352,-572.0,0.00044833,2]
[392106460,1761163841362,-1311.0,0.00044833,2]
[392106461,1761163841370,-1591.0,0.00044833,2]
[392106462,1761163841379,-605.0,0.00044833,2]
[392106463,1761163841389,-1266.48740977,0.00044844,15]
[392106464,1761163841398,-164.16656253,0.00044854,28]
[392106466,1761163841407,-1266.48740977,0.00044856,15]
[392106468,1761163841417,-5000.0,0.00044862,120]
[392106470,1761163841427,-406.0,0.00044866,7]
[392106472,1761163841436,-1266.48740977,0.00044867,15]
[392106474,1761163841445,-168.0,0.00044874,2]
[392106476,1761163841455,-1266.48740977,0.00044878,15]
[392106478,1761163841464,-164.16656253,0.00044881,28]
[392106480,1761163841474,-1266.48740977,0.00044889,15]
[392106482,1761163841483,-13022.531063,0.0004489,3]
[392106484,1761163841492,-161.80636963,0.0004489,20]
[392106486,1761163841501,-504.26,0.00044899,120]
[392106488,1761163841511,-500.0,0.00044899,120]
[392106490,1761163841520,-507.68415604,0.00044899,120]
[392106492,1761163841529,-500.0,0.00044899,120]
[392106494,1761163841538,-554.29106622,0.00044899,7]
[392106496,1761163841547,-516.65166204,0.00044899,120]
[392106497,1761163841557,-500.0,0.00044899,2]
[392106499,1761163841567,-502.58859303,0.00044899,30]
[392106501,1761163841576,-500.0,0.00044899,120]
[392106503,1761163841585,-500.0,0.00044899,120]
[392106505,1761163841595,-500.0,0.00044899,120]
[392106507,1761163841604,-374.6223791,0.00044899,120]
[392106509,1761163841613,-506.66296033,0.00044899,120]
[392106511,1761163841622,-500.0,0.00044899,120]
[392106513,1761163841631,-500.0,0.00044899,120]
[392106515,1761163841642,-500.0,0.00044899,120]
[392106517,1761163841651,-500.0,0.00044899,120]
[392106519,1761163841660,-216.60276416,0.000449,17]
[392106521,1761163841671,-226.43700315,0.000449,2]
[392106523,1761163841680,-53643.2018,0.000449,60]
[392106525,1761163841690,-1266.48740977,0.000449,15]
[392106527,1761163841699,-400.0,0.000449,16]
[392106529,1761163841708,-500.0,0.000449,120]
[392106531,1761163841717,-500.0,0.000449,120]
[392106534,1761163841727,-500.0,0.000449,120]
[392106536,1761163841737,-500.0,0.000449,120]
[392106537,1761163841746,-500.0,0.000449,120]
[392106539,1761163841755,-500.0,0.000449,120]
[392106542,1761163841764,-500.0,0.000449,120]
[392106543,1761163841773,-500.0,0.000449,120]
[392106545,1761163841783,-500.0,0.000449,120]
[392106548,1761163841792,-500.0,0.000449,120]
[392106550,1761163841801,-500.0,0.000449,120]
[392106551,1761163841810,-500.0,0.000449,120]
[392106554,1761163841820,-500.0,0.000449,120]
[392106555,1761163841829,-500.0,0.000449,120]
[392106557,1761163841838,-500.0,0.000449,120]
[392106560,1761163841847,-500.0,0.000449,120]
[392106562,1761163841856,-500.0,0.000449,120]
[392106564,1761163841866,-500.0,0.000449,120]
[392106565,1761163841875,-500.0,0.000449,120]
[392106568,1761163841884,-500.0,0.000449,120]
[392106570,1761163841893,-500.0,0.000449,120]
[392106572,1761163841912,-500.0,0.000449,120]
[392106575,1761163841923,-500.0,0.000449,120]
[392106577,1761163841933,-500.0,0.000449,120]
[392106579,1761163841947,-500.0,0.000449,120]
[392106581,1761163841957,-500.0,0.000449,120]
[392106583,1761163841966,-500.0,0.000449,120]
[392106585,1761163841977,-500.0,0.000449,120]
[392106587,1761163841987,-500.0,0.000449,120]
[392106589,1761163841997,-500.0,0.000449,120]
[392106592,1761163842007,-790.0,0.000449,120]
[392106594,1761163842017,-500.0,0.000449,120]
[392106596,1761163842026,-500.0,0.000449,120]
[392106598,1761163842035,-500.0,0.000449,120]
[392106600,1761163842045,-500.0,0.000449,120]
[392106602,1761163842054,-500.0,0.000449,120]
[392106604,1761163842063,-500.0,0.000449,120]
[392106606,1761163842072,-500.0,0.000449,120]
[392106608,1761163842082,-500.0,0.000449,120]
[392106610,1761163842092,-500.0,0.000449,120]
[392106612,1761163842101,-500.0,0.000449,120]
[392106614,1761163842110,-500.0,0.000449,120]
[392106616,1761163842120,-500.0,0.000449,120]
[392106618,1761163842130,-500.0,0.000449,120]
[392106620,1761163842144,-500.0,0.000449,120]
[392106622,1761163842153,-500.0,0.000449,120]
[392106624,1761163842162,-500.0,0.000449,120]
[392106626,1761163842171,-500.0,0.000449,120]
[392106628,1761163842182,-500.0,0.000449,120]
[392106630,1761163842193,-500.0,0.000449,120]
[392106633,1761163842203,-500.0,0.000449,120]
[392106635,1761163842215,-500.0,0.000449,120]
[392106637,1761163842225,-500.0,0.000449,120]
[392106639,1761163842235,-500.0,0.000449,120]
[392106641,1761163842244,-500.0,0.000449,120]
[392106643,1761163842254,-500.0,0.000449,120]
[392106645,1761163842264,-500.0,0.000449,120]
[392106647,1761163842273,-500.0,0.000449,120]
[392106649,1761163842283,-500.0,0.000449,120]
[392106651,1761163842293,-500.0,0.000449,120]
[392106653,1761163842302,-500.0,0.000449,120]
[392106655,1761163842311,-500.0,0.000449,120]
[392106657,1761163842321,-500.0,0.000449,120]
[392106659,1761163842331,-500.0,0.000449,120]
[392106661,1761163842340,-500.0,0.000449,120]
[392106663,1761163842349,-500.0,0.000449,120]
[392106665,1761163842359,-500.0,0.000449,120]
[392106667,1761163842368,-500.0,0.000449,120]
[392106669,1761163842378,-500.0,0.000449,120]
[392106671,1761163842388,-500.0,0.000449,120]
[392106673,1761163842400,-500.0,0.000449,120]
[392106675,1761163842409,-500.0,0.000449,120]
[392106677,1761163842419,-500.0,0.000449,120]
[392106679,1761163842428,-500.0,0.000449,120]
[392106681,1761163842438,-500.0,0.000449,120]
[392106684,1761163842448,-500.0,0.000449,120]
[392106686,1761163842458,-500.0,0.000449,120]
[392106688,1761163842467,-500.0,0.000449,120]
[392106689,1761163842478,-500.0,0.000449,120]
[392106691,1761163842488,-500.0,0.000449,120]
[392106693,1761163842497,-500.0,0.000449,120]
[392106696,1761163842508,-500.0,0.000449,120]
[392106698,1761163842517,-500.0,0.000449,120]
[392106700,1761163842527,-500.0,0.000449,120]
[392106701,1761163842536,-500.0,0.000449,120]
[392106704,1761163842546,-500.0,0.000449,120]
[392106706,1761163842555,-500.0,0.000449,120]
[392106707,1761163842564,-500.0,0.000449,120]
[392106709,1761163842574,-2520.66740643,0.000449,15]
[392106711,1761163842583,-500.0,0.000449,120]
[392106713,1761163842592,-500.0,0.000449,120]
[392106715,1761163842602,-500.0,0.000449,120]
[392106717,1761163842612,-500.0,0.000449,120]
[392106719,1761163842621,-500.0,0.000449,120]
[392106722,1761163842631,-500.0,0.000449,120]
[392106723,1761163842641,-500.0,0.000449,120]
[392106725,1761163842650,-500.0,0.000449,120]
[392106727,1761163842660,-500.0,0.000449,120]
[392106729,1761163842669,-500.0,0.000449,120]
[392106731,1761163842680,-500.0,0.000449,120]
[392106733,1761163842689,-500.0,0.000449,120]
[392106736,1761163842699,-500.0,0.000449,120]
[392106738,1761163842708,-500.0,0.000449,120]
[392106739,1761163842717,-500.0,0.000449,120]
[392106741,1761163842726,-500.0,0.000449,120]
[392106743,1761163842735,-500.0,0.000449,120]
[392106745,1761163842744,-500.0,0.000449,120]
[392106747,1761163842755,-500.0,0.000449,120]
[392106750,1761163842765,-500.0,0.000449,120]
[392106752,1761163842774,-500.0,0.000449,120]
[392106754,1761163842783,-500.0,0.000449,120]
[392106756,1761163842793,-713.0,0.000449,120]
[392106758,1761163842802,-351.386362,0.000449,27]
[392106760,1761163842811,-500.0,0.000449,120]
[392106761,1761163842820,-500.0,0.000449,120]
[392106763,1761163842829,-500.0,0.000449,120]
[392106765,1761163842838,-500.0,0.000449,120]
[392106767,1761163842847,-500.0,0.000449,120]
[392106769,1761163842856,-500.0,0.000449,120]
[392106771,1761163842867,-500.0,0.000449,120]
[392106774,1761163842880,-500.0,0.000449,120]
[392106776,1761163842890,-500.0,0.000449,120]
[392106778,1761163842900,-500.0,0.000449,120]
[392106780,1761163842909,-500.0,0.000449,120]
[392106782,1761163842918,-500.0,0.000449,120]
[392106784,1761163842927,-500.0,0.000449,120]
[392106786,1761163842937,-500.0,0.000449,120]
[392106788,1761163842946,-500.0,0.000449,120]
[392106790,1761163842956,-500.0,0.000449,120]
[392106792,1761163842966,-500.0,0.000449,120]
[392106794,1761163842975,-500.0,0.000449,120]
[392106796,1761163842984,-500.0,0.000449,120]
[392106798,1761163842993,-500.0,0.000449,120]
[392106801,1761163843002,-500.0,0.000449,120]
[392106803,1761163843012,-500.0,0.000449,120]
[392106805,1761163843021,-500.0,0.000449,120]
[392106807,1761163843030,-500.0,0.000449,120]
[392106809,1761163843039,-500.0,0.000449,120]
[392106811,1761163843048,-500.0,0.000449,120]
[392106812,1761163843058,-500.0,0.000449,120]
[392106815,1761163843068,-500.0,0.000449,120]
[392106816,1761163843077,-823.0,0.000449,120]
[392106819,1761163843087,-164.16656253,0.00044909,28]
[392106821,1761163843096,-164.16656253,0.00044936,28]
[392106822,1761163843105,-6511.26553149,0.00044951,3]
[392106825,1761163843115,-45578.8587204,0.00044952,3]
[392106827,1761163843126,-500.0,0.00044955,120]
[392106829,1761163843139,-1795.72,0.00044961,120]
[392106831,1761163843148,-500.0,0.00044961,120]
[392106832,1761163843157,-500.0,0.00044961,120]
[392106835,1761163843167,-1199.4797455,0.00044962,2]
[392106837,1761163843176,-93352.240754,0.00044962,2]
[392106839,1761163843186,-19533.7965945,0.00044969,3]
[392106841,1761163843196,-800.0,0.0004497,3]
[392106843,1761163843205,-500.0,0.00044973,10]
[392106845,1761163843215,-6511.26553149,0.00044978,3]
[392106847,1761163843224,-500.0,0.00044979,120]
[392106849,1761163843233,-6511.26553149,0.00044979,3]
[392106851,1761163843243,-11124.97802711,0.0004498,3]
[392106861,1761163843327,-509.42757624,0.0004498,3]
[392106863,1761163843339,-4171.38905059,0.0004498,3]
[392106865,1761163843350,-821.01073957,0.0004498,3]
[392106867,1761163843361,-539.75,0.0004498,3]
[392106872,1761163843393,-1338.06703781,0.0004498,3]
[392106874,1761163843404,-7540.43969468,0.0004498,3]
[392106876,1761163843414,-504.26,0.0004498,120]
[392106878,1761163843424,-500.0,0.0004498,120]
[392106880,1761163843433,-500.0,0.0004498,2]
[392106881,1761163843444,-516.92219237,0.0004498,120]
[392106882,1761163843453,-500.0,0.0004498,120]
[392106883,1761163843462,-500.0,0.0004498,120]
[392106884,1761163843472,-500.0,0.0004498,120]
[392106885,1761163843482,-160.12198296,0.00044986,30]
[392106886,1761163843492,-1795.72,0.00044988,120]
[392106887,1761163843501,-500.0,0.00044988,120]
[392106888,1761163843510,-500.0,0.00044988,120]
[392106891,1761163843519,-32556.3276575,0.00044989,3]
[392106892,1761163843528,-13614.03725074,0.00044989,3]
[392106894,1761163843540,-316.92157594,0.00044989,3]
[392106897,1761163843551,-470.680005,0.00044989,3]
[392106899,1761163843563,-551.35539722,0.00044989,3]
[392106901,1761163843575,-448.25575165,0.00044989,3]
[392106903,1761163843586,-1193.83418806,0.00044989,3]
[392106906,1761163843598,-77.69057879,0.00044989,3]
[392106908,1761163843607,-504.26,0.00044989,120]
[392106909,1761163843617,-500.0,0.00044989,120]
[392106912,1761163843630,-42.21494678,0.00044989,120]
[392106915,1761163843645,-226.43700314,0.000449,2]
[392106917,1761163843655,-457.78505322,0.00044989,120]
[392106919,1761163843663,-500.0,0.00044989,120]
[392106921,1761163843673,-1296.47794364,0.00044989,120]
[392107134,1761163846099,-2926.45490621,0.00044862,120]
[392107139,1761163846132,-327.30677729,0.00044862,120]
[392107141,1761163846146,-1121.60511988,0.00044862,120]
[392107147,1761163846195,-624.63319662,0.00044862,120]
[392107149,1761163846204,-499.24205636,0.00044989,120]
[392107151,1761163846215,-500.0,0.00044989,120]
[392107153,1761163846223,-500.0,0.00044989,120]
[392107155,1761163846233,-356.78164,0.00044989,26]
[392107157,1761163846242,-500.0,0.00044989,120]
[392107159,1761163846252,-19533.7965945,0.00044989,3]
[392107161,1761163846261,-14772.07580172,0.00044989,3]
[392107163,1761163846272,-653.47039619,0.00044989,3]
[392107175,1761163846371,-295.38750034,0.00044989,3]
[392107182,1761163846430,-570.22282652,0.00044989,3]
[392107215,1761163859927,1378.4332485,0.00033025,2]
[392107221,1761164313239,-270.98205017,0.00029886,7]
[392107222,1761164328779,-179.01794983,0.00029886,7]
[392107223,1761164568192,-160.29162638,0.00037411,2]
[392107224,1761164573110,-240.59250355,0.00037411,2]
[392107225,1761164575210,-300.0,0.00037411,2]
[392107226,1761164591202,-231.35667096,0.00037411,2]
[392107227,1761164708332,1091601.51171987,0.00015,2]
[392107228,1761164725969,365.88820122,0.000108,2]
[392107229,1761164736384,1098.85001053,9e-05,2]
[392107230,1761164748194,-185.0,0.0001995,15]
[392107231,1761164749666,-192.31392276,0.0001995,15]
[392107232,1761164751324,211.1,0.00013699,2]
[392107233,1761164752860,-397.31835882,0.0001995,15]
[392107236,1761164756766,-172.74111691,0.0001995,15]
[392107237,1761164758534,-188.31477724,0.0001995,15]
[392107238,1761164761982,-157.73370258,0.0001995,15]
[392107239,1761164762327,1337.63178825,8e-05,2]
[392107240,1761164778864,-383.92201062,0.0001995,15]
[392107241,1761164780711,-200.0,0.0001995,15]
[392107242,1761164782905,-325.44837262,0.0001995,15]
[392107243,1761164785652,-296.53160426,0.0001985,2]
[392107244,1761164787471,-80.78231874,0.0001985,2]
[392107245,1761164787493,-230.16832961,0.0001995,15]
[392107246,1761164791756,-303.43349556,0.0001995,15]
[392107247,1761164808304,-213.44839364,0.0001995,15]
[392107248,1761164813066,-285.0294252,0.0001995,15]
[392107249,1761164817113,-215.86258775,0.0001995,15]
[392107250,1761164817650,6316.68105732,0.000162,5]
[392107251,1761164819980,-307.54171257,0.0001995,15]
[392107252,1761164825090,-607.19532838,0.0001995,15]
[392107253,1761164836090,-2841.12082013,0.0001995,15]
[392107254,1761164836114,-300.0,0.00019999,2]
[392107255,1761164836134,-637.34393449,0.00019999,2]
[392107256,1761164836157,-500.0,0.00019999,2]
[392107257,1761164836179,-205.1680116,0.00019999,2]
[392107258,1761164836198,-7736.51135275,0.0002,2]
[392107259,1761164838281,-304.68708306,0.0002,2]
[392107260,1761164839797,-227.92048471,0.00019899,2]
[392107261,1761164839819,-14.73771924,0.0002,2]
[392107262,1761164841915,-233.93749573,0.0002,2]
[392107263,1761164843564,-294.53651146,0.0002,2]
[392107264,1761164845143,-295.3541,0.0002,2]
[392107265,1761164847201,-190.40926655,0.0002,2]
[392107266,1761164848804,-241.49313304,0.0002,2]
[392107267,1761164852025,-366.13535602,0.0002,2]
[392107268,1761164856283,-175.31230118,0.0002,2]
[392107269,1761164857894,-243.74353934,0.0002,2]
[392107270,1761164861650,-165.3105718,0.0002,2]
[392107271,1761164863727,-410.52093726,0.0002,2]
[392107272,1761164866699,-303.70130713,0.0002,2]
[392107273,1761164883227,-202.86642923,0.0002,2]
[392107274,1761164885264,-277.25357077,0.0002,2]
[392107276,1761164927264,953.34072653,0.00013699,2]
[392107277,1761164928096,-255.53916602,0.0001901,7]
[392107278,1761164957118,-98.13833299,0.0001901,7]
[392107279,1761164957140,-72.24808321,0.0002,2]
[392107280,1761164957169,-34110.98259651,0.0002,2]
[392107281,1761164957188,-2895.13962783,0.0002,7]
[392107282,1761164957209,-521.67904433,0.0002,7]
[392107283,1761164957234,-175.44837262,0.00020087,2]
[392107284,1761164957253,-211.1,0.00020187,2]
[392107285,1761164957273,-3864.35277871,0.000207,2]
[392107286,1761164968082,-16199.89588,0.000207,2]
[392107287,1761164971233,-531.91986926,0.000207,2]
[392107288,1761164971254,-227.9204847,0.00023238,2]
[392107289,1761164971274,-476.13251256,0.00025944,2]
[392107290,1761164971295,-227.9204847,0.00026576,2]
[392107291,1761164971314,-211.1,0.00026676,2]
[392107292,1761164971334,-4118.78897101,0.0002729,2]
[392107293,1761164971354,-32752.71337624,0.00028,2]
[392107294,1761164971375,-328.0,0.00029553,2]
[392107295,1761164971395,-4874.494618,0.0003,5]
[392107296,1761164971415,-1000.0,0.00032213,7]
[392107297,1761164971435,-150.99,0.00032232,2]
[392107298,1761164971459,-1579.7,0.00032232,2]
[392107299,1761164971479,-1094.55,0.00032232,2]
[392107300,1761164971499,-7534.32,0.00032232,2]
[392107301,1761164971519,-211.1,0.00033165,2]
[392107302,1761164972114,-178.81,0.00034776,2]
[392107303,1761164972135,-490.73,0.00034776,2]
[392107304,1761164972155,-1164.47,0.00034776,2]
[392107305,1761164972178,-174.79554245,0.000348,120]
[392107306,1761164972200,-300.0,0.00035238,120]
[392107307,1761164972228,-202.88841952,0.00035238,120]
[392107308,1761164972256,-174.79554245,0.000358,120]
[392107309,1761164972280,-395.75441257,0.00036063,2]
[392107310,1761164972301,-174.79554245,0.000369,120]
[392107311,1761164972321,-200.0,0.00037224,4]
[392107312,1761164972344,-1168.956,0.00037311,30]
[392107313,1761164972365,-446.19244761,0.00037411,2]
[392107314,1761164972385,-500.0,0.00037549,30]
[392107315,1761164974108,-174.79554245,0.00038,120]
[392107316,1761164974129,-250.0,0.00038254,2]
[392107317,1761164974150,-300.0,0.00038254,120]
[392107318,1761164974173,-2304.98516231,0.00038254,120]
[392107319,1761164974193,-2608.61644225,0.00038254,120]
[392107320,1761164974212,-300.0,0.00038254,120]
[392107321,1761164974231,-150.0,0.00038782,2]
[392107322,1761164974250,-401.45,0.00038841,2]
[392107323,1761164974271,-1143.38384372,0.00039,2]
[392107324,1761164974293,-174.79554245,0.000391,120]
[392107325,1761164974314,-3040.5,0.00039128,2]
[392107326,1761165003575,150.0,0.000357,2]
[392107327,1761165008556,300.0,0.0003927,120]
[392107332,1761165032141,-150.92,0.000357,2]
[392107334,1761165032151,-200.0,0.000357,120]
[392107335,1761165032161,-177.69801775,0.000357,14]
[392107336,1761165032171,-211.1,0.00039654,2]
[392107337,1761165032180,-230.48512354,0.0004045,2]